bitfinex-derivatives/quotes_ETHF0:USTF0_20250816
["timestamp","ask_amount","ask_price","bid_price","bid_amount"]
[1755384310874,1.4452,4430.2,4430.1,1.4512]
[1755384318978,0.5613,4430.4,4430.3,0.5892]
[1755384319177,0.5613,4430.4,4430.3,1.4804]
[1755384319680,0.8191,4430.4,4430.3,1.4804]
[1755384319977,1.4377,4430.4,4430.3,1.4804]
[1755384327176,0.3201,4430.5,4430.4,1.4804]
[1755384327382,1.4377,4430.5,4430.4,1.4804]
[1755384333282,2.00451802,4430.5,4430.4,1.4804]
[1755384333682,2.00451178,4430.5,4430.4,1.4804]
[1755384338278,0.56681178,4430.5,4430.4,1.5029]
[1755384338485,0.8191,4431.3,4431.2,0.5892]
[1755384338782,2.00463215,4431.3,4431.2,1.4804]
[1755384340782,1.4377,4431.3,4431.2,1.4804]
[1755384346893,0.5613,4431.3,4430.6,3.2078]
[1755384347087,1.4377,4430.8,4430.7,1.4804]
[1755384347484,0.8191,4430.8,4430.7,1.4804]
[1755384347686,0.5779,4430.8,4430.7,1.4804]
[1755384348390,0.4182,4430.8,4430.7,1.4804]
[1755384353789,1.0661,4430.8,4430.7,1.4804]
[1755384356495,1.2336,4430.8,4430.7,1.4804]
[1755384359490,3.2078,4431.6,4430.7,0.5892]
[1755384359688,0.5768,4431.0,4430.9,1.4628]
[1755384359889,1.2247,4431.0,4430.9,1.4628]
[1755384360395,0.5768,4431.0,4430.9,1.4628]
[1755384360695,1.4742,4431.0,4430.9,1.4628]
[1755384362391,0.1,4432.2,4431.6,0.2435]
[1755384362592,2.04010093,4432.1,4432.0,1.4628]
[1755384363000,1.4742,4432.1,4432.0,1.4628]
[1755384363298,2.04015521,4432.1,4432.0,1.4628]
[1755384363596,1.4742,4432.1,4432.0,1.4628]
[1755384364898,0.1,4432.2,4432.0,1.2193]
[1755384365094,1.4742,4432.1,4432.0,0.8357]
[1755384365599,1.4742,4432.1,4432.0,1.4628]
[1755384366295,0.3391,4432.2,4432.0,0.5922]
[1755384366597,0.3391,4432.2,4432.1,1.4628]
[1755384367195,1.3247,4432.2,4432.1,1.4628]
[1755384367696,0.6768,4432.2,4432.1,1.4628]
[1755384368197,1.5742,4432.2,4432.1,1.4628]
[1755384374200,0.7683,4432.2,4432.1,1.4628]
[1755384374398,0.2391,4433.1,4432.4,0.45094]
[1755384374605,0.2391,4433.1,4433.0,1.4628]
[1755384375499,3.2078,4433.3,4433.2,0.5922]
[1755384375701,3.2078,4433.3,4433.2,1.4628]
[1755384376098,3.4469,4433.3,4433.2,1.4628]
[1755384376294,3.2078,4433.3,4433.2,1.4628]
[1755384376594,0.887,4433.5,4433.4,1.4628]
[1755384376798,1.2247,4433.5,4433.4,1.4628]
[1755384376997,1.4742,4433.5,4433.4,1.4628]
[1755384377198,3.2078,4434.0,4433.4,0.5922]
[1755384377405,4.4429,4434.0,4433.9,0.5922]
[1755384377606,4.4429,4434.0,4433.9,1.4628]
[1755384378001,4.682,4434.0,4433.9,1.4628]
[1755384382910,4.682,4434.0,4433.9,1.2193]
[1755384384907,4.682,4434.0,4433.9,1.4719]
[1755384385309,4.682,4434.0,4433.9,1.0502]
[1755384385904,1.4742,4434.0,4433.9,1.0502]
[1755384386400,1.4742,4434.0,4433.9,1.3028]
[1755384389311,1.4742,4434.0,4433.9,1.4755]
[1755384394608,4.0241,4434.7,4434.6,0.4161]
[1755384394808,4.6317,4434.7,4434.6,1.0659]
[1755384395608,4.6317,4434.7,4434.6,1.3185]
[1755384396411,4.6317,4434.7,4434.6,1.4912]
[1755384397009,4.6317,4434.7,4433.7,3.2078]
[1755384397213,0.1685,4434.0,4433.9,1.4912]
[1755384397515,0.5696,4434.1,4434.0,1.4912]
[1755384397711,1.4239,4434.1,4434.0,1.4912]
[1755384398213,1.4239,4434.1,4433.0,0.45088]
[1755384398214,1.4239,4433.2,4433.1,1.4912]
[1755384399612,0.8163,4433.2,4433.1,1.4912]
[1755384400814,1.4239,4433.2,4433.1,1.4912]
[1755384401412,1.4239,4433.2,4433.1,1.2386]
[1755384401612,1.4239,4433.2,4433.1,1.0659]
[1755384401918,1.4239,4433.2,4433.1,1.4912]
[1755384402218,0.8163,4433.2,4433.1,1.4912]
[1755384402414,0.8163,4433.2,4433.1,0.1727]
[1755384402612,0.5764,4432.7,4432.6,1.0986]
[1755384402913,1.4239,4432.7,4432.6,1.4912]
[1755384403309,1.4239,4432.7,4432.0,0.9024]
[1755384403506,1.4239,4432.6,4432.5,0.1727]
[1755384403714,1.4239,4432.6,4432.5,0.8225]
[1755384403912,1.4239,4432.6,4432.5,1.0659]
[1755384404121,1.4239,4432.6,4432.5,1.3185]
[1755384406218,1.4239,4432.6,4432.5,1.4912]
[1755384406717,0.6076,4432.5,4431.9,3.2078]
[1755384406912,4.385,4432.4,4432.3,0.8414]
[1755384407110,4.6317,4432.4,4432.3,1.4912]
[1755384408619,3.2078,4432.9,4432.3,1.4912]
[1755384408822,0.8375,4432.9,4432.8,0.833]
[1755384409128,1.4583,4432.9,4432.8,1.4683]
[1755384409318,0.3311,4433.0,4432.9,1.4683]
[1755384409516,1.4583,4433.0,4432.9,1.4683]
[1755384413426,0.3651,4432.9,4432.1,3.2078]
[1755384413725,0.59,4432.2,4432.1,0.833]
[1755384414219,0.4217,4432.2,4432.1,1.4683]
[1755384414428,1.0343,4432.8,4432.7,0.5929]
[1755384414626,1.4583,4432.8,4432.7,0.34]
[1755384414818,0.5786,4432.8,4432.4,0.2401]
[1755384415123,0.5786,4432.5,4432.4,1.2939]
[1755384415324,1.4583,4432.5,4432.4,1.4683]
[1755384418021,0.4126,4432.3,4432.2,0.3785]
[1755384418229,1.4583,4432.3,4432.2,0.8009]
[1755384418525,1.4583,4432.3,4432.2,1.2939]
[1755384418714,0.3651,4432.8,4432.1,0.6353]
[1755384418920,1.4583,4432.8,4432.5,0.8754]
[1755384419119,0.5786,4432.3,4432.2,1.4683]
[1755384419325,1.4583,4432.3,4432.2,1.4683]
[1755384424330,0.8797,4432.0,4431.5,3.2078]
[1755384424526,1.4583,4431.6,4431.5,3.2078]
[1755384424721,1.4583,4431.6,4431.5,4.6761]
[1755384424925,0.3651,4431.9,4431.5,4.6761]
[1755384425129,0.9437,4431.9,4431.8,0.5929]
[1755384425324,1.4583,4431.9,4431.8,1.4683]
[1755384428630,1.4808,4431.9,4431.5,3.2078]
[1755384428833,1.4583,4431.2,4431.1,0.10155377]
[1755384429631,1.4583,4431.2,4431.1,0.90245377]
[1755384429827,1.4583,4431.2,4431.1,1.15535377]
[1755384430028,1.4583,4431.2,4431.1,1.39545377]
[1755384430431,1.4583,4431.2,4431.1,1.15535377]
[1755384430833,1.4583,4431.2,4431.1,0.26715377]
[1755384431235,1.4583,4431.2,4431.1,1.15535377]
[1755384433642,1.4583,4431.2,4431.1,1.56985377]
[1755384436038,4.6661,4431.2,4431.1,1.56985377]
[1755384439334,4.6661,4431.2,4431.1,0.26715377]
[1755384439740,4.6661,4431.2,4431.1,1.39815377]
[1755384439939,4.6661,4431.2,4431.1,1.55895377]
[1755384440139,3.2078,4431.2,4431.1,1.55895377]
[1755384440540,4.0494,4431.7,4431.6,0.5739]
[1755384440842,4.6753,4431.7,4431.6,1.4593]
[1755384447244,4.6753,4431.7,4431.6,1.0433]
[1755384447545,4.6753,4431.7,4431.6,0.1675]
[1755384447749,4.6753,4431.7,4431.6,1.0433]
[1755384449250,0.8841,4431.6,4431.1,0.10155377]
[1755384449452,1.4675,4431.2,4431.1,0.89925377]
[1755384449952,1.4675,4431.2,4431.1,1.14485377]
[1755384450345,1.4675,4431.2,4431.1,0.10155377]
[1755384451248,4.6753,4431.2,4431.1,0.35195377]
[1755384451455,4.6753,4431.2,4431.1,0.73175377]
[1755384451655,4.6753,4431.2,4431.1,0.89925377]
[1755384454049,4.6753,4431.2,4431.1,0.10155377]
[1755384454449,7.6753,4431.2,4431.1,0.10155377]
[1755384454747,4.6753,4431.2,4431.1,0.10155377]
[1755384455356,5.24072303,4431.2,4431.1,0.10155377]
[1755384456848,5.24072303,4431.2,4431.1,0.00532278]
[1755384457253,0.0225,4431.0,4429.6,3.2078]
[1755384457448,0.5834,4430.1,4430.0,1.2041]
[1755384457651,1.4675,4430.1,4430.0,1.4593]
[1755384464856,3.2078,4430.6,4430.1,0.0225]
[1755384465061,3.2078,4431.2,4430.5,4.6671]
[1755384465266,3.3709,4431.2,4431.1,1.2041]
[1755384465462,3.6291,4431.2,4431.1,1.4593]
[1755384465864,3.466,4431.2,4431.1,1.4593]
[1755384466057,3.2078,4431.2,4431.1,1.4593]
[1755384466964,0.8841,4431.4,4431.1,1.4593]
[1755384467168,0.2582,4431.3,4431.2,0.8854]
[1755384467464,0.2582,4431.3,4431.2,1.4593]
[1755384468563,1.2179,4431.3,4431.2,1.4593]
[1755384468768,1.4675,4431.3,4431.2,1.4593]
[1755384471975,0.2564,4431.6,4430.8,0.0225]
[1755384472168,0.5921,4431.6,4431.5,0.5918]
[1755384472369,3.2078,4431.7,4431.5,1.4883]
[1755384472663,3.4642,4431.7,4431.6,1.4883]
[1755384472972,4.6812,4431.7,4431.6,1.4883]
[1755384473476,4.0527,4431.7,4431.6,1.4883]
[1755384473768,0.1,4432.2,4431.6,1.4883]
[1755384473769,0.2578,4432.0,4431.6,1.4883]
[1755384473969,0.2564,4431.9,4431.8,0.5918]
[1755384474165,1.4734,4431.9,4431.8,1.4883]
[1755384487783,3.6785,4432.2,4431.8,0.5918]
[1755384487980,3.3078,4432.2,4432.1,0.5918]
[1755384488179,3.3078,4432.2,4432.1,1.4883]
[1755384488386,0.3564,4432.2,4432.1,1.4883]
[1755384488683,1.3206,4432.2,4432.1,1.4883]
[1755384490183,1.0628,4432.2,4432.1,1.4883]
[1755384491286,1.3206,4432.2,4432.1,1.4883]
[1755384492186,1.5734,4432.2,4432.1,1.4883]
[1755384495184,1.5734,4432.2,4432.1,1.0825]
[1755384495384,0.5885,4431.1,4431.0,4.6961]
[1755384495585,1.4734,4431.1,4431.0,4.76434651]
[1755384496380,1.4734,4431.1,4431.0,1.55654651]
[1755384496686,1.4734,4431.1,4431.0,1.79914651]
[1755384498088,1.4734,4431.1,4431.0,0.31084651]
[1755384498290,1.4734,4431.1,4431.0,0.48114651]
[1755384498291,4.6812,4431.1,4431.0,0.48114651]
[1755384498590,4.6812,4431.1,4431.0,1.13504651]
[1755384499991,4.6812,4431.1,4431.0,0.74214651]
[1755384500196,4.6812,4431.1,4431.0,0.48114651]
[1755384500382,4.6812,4431.1,4431.0,0.31084651]
[1755384500891,5.26859726,4431.1,4430.1,20.8003]
[1755384501091,1.4945,4430.3,4430.1,0.2473]
[1755384501291,1.4945,4430.0,4429.9,21.8721]
[1755384501592,1.4945,4430.0,4429.9,21.6253]
[1755384502189,1.4945,4430.0,4429.9,21.8721]
[1755384502390,1.4945,4430.0,4429.9,22.0403]
[1755384502595,1.2333,4430.0,4429.9,22.0403]
[1755384502788,0.2599,4430.5,4429.9,21.6473]
[1755384502994,1.4945,4430.5,4430.4,0.6002]
[1755384503194,1.4945,4430.5,4430.4,1.4873]
[1755384504591,3.2078,4430.6,4430.4,0.825]
[1755384504792,4.0769,4431.2,4431.1,1.4873]
[1755384504987,3.2078,4431.9,4431.1,1.4873]
[1755384505187,3.2078,4431.9,4431.8,0.2634]
[1755384505495,4.0769,4431.9,4431.8,1.4873]
[1755384505686,4.4411,4431.9,4431.8,1.4873]
[1755384506288,3.2078,4431.9,4431.8,1.4873]
[1755384506789,0.8704,4432.1,4432.0,0.6002]
[1755384506993,0.351,4432.1,4432.0,1.4873]
[1755384507192,0.1742,4432.1,4432.0,1.4873]
[1755384507389,0.1,4432.2,4432.1,0.6403]
[1755384507586,0.1,4432.2,4432.1,1.4873]
[1755384507988,0.3599,4432.2,4432.1,1.4873]
[1755384508195,0.7109,4432.2,4432.1,1.4873]
[1755384508398,1.5945,4432.2,4432.1,1.4873]
[1755384513804,0.1,4432.2,4432.1,1.4873]
[1755384514199,0.3599,4432.2,4432.1,1.4873]
[1755384514501,0.9691,4432.2,4432.1,1.4873]
[1755384515203,1.3333,4432.2,4432.1,1.4873]
[1755384516799,1.3333,4432.2,4431.4,3.2078]
[1755384517003,0.351,4431.8,4431.7,0.9932]
[1755384517196,1.2333,4431.8,4431.7,1.4873]
[1755384517505,0.8691,4431.8,4431.7,1.4873]
[1755384517706,0.6109,4431.8,4431.7,1.4873]
[1755384518204,0.5181,4432.0,4431.8,0.8871]
[1755384518408,0.6109,4432.0,4431.9,1.4873]
[1755384520207,1.2333,4432.0,4431.9,1.4873]
[1755384520507,1.4945,4432.0,4431.9,1.4873]
[1755384521908,0.6109,4432.0,4431.9,1.4873]
[1755384522909,0.8691,4432.0,4431.9,1.4873]
[1755384523510,1.2333,4432.0,4431.9,1.4873]
[1755384524309,0.9734,4432.0,4431.9,1.4873]
[1755384524505,0.2599,4432.1,4431.9,0.6002]
[1755384524706,0.2599,4432.1,4432.0,1.4873]
[1755384525206,0.1,4432.2,4432.1,1.4873]
[1755384528517,0.3599,4432.2,4432.1,1.4873]
[1755384529912,0.6164,4432.2,4432.1,1.4873]
[1755384530114,1.3399,4432.2,4432.1,1.4873]
[1755384530517,1.5965,4432.2,4432.1,1.4873]
[1755384542721,1.0593,4432.1,4432.0,0.1614]
[1755384543022,0.5845,4432.1,4432.0,1.4806]
[1755384543419,1.4802,4432.1,4432.0,1.4806]
[1755384547426,1.4802,4432.1,4431.9,3.2078]
[1755384547628,1.4802,4431.4,4431.3,4.2691]
[1755384548028,1.4802,4431.4,4431.3,4.6884]
[1755384553034,1.4802,4431.4,4431.3,1.4806]
[1755384553837,0.838,4431.4,4431.3,1.4806]
[1755384554028,0.5814,4431.4,4431.3,1.4806]
[1755384554630,0.8379,4431.4,4431.3,1.4806]
[1755384554836,1.2236,4431.4,4431.3,1.4806]
[1755384556732,1.4802,4431.4,4431.3,1.4806]
[1755384565939,1.4802,4431.4,4431.3,21.9856]
[1755384578841,1.4802,4431.4,4431.3,21.9726]
[1755384581135,1.0731,4431.9,4431.8,1.4759]
[1755384581343,1.461,4431.9,4431.8,25.1757]
[1755384583338,0.1,4432.2,4431.8,24.8]
[1755384583540,0.1,4432.2,4432.1,1.4759]
[1755384583739,0.3436,4432.2,4432.1,21.9669]
[1755384583948,0.5906,4432.2,4432.1,21.9669]
[1755384584247,1.3027,4432.2,4432.1,21.9669]
[1755384586546,1.561,4432.2,4432.1,21.9669]
[1755384600251,0.1,4432.2,4432.1,21.9669]
[1755384601654,0.3409,4432.2,4432.1,21.9669]
[1755384603563,0.5827,4431.9,4431.8,3.6276]
[1755384603758,1.4706,4431.9,4431.8,24.5179]
[1755384604471,1.4706,4431.9,4431.8,25.1342]
[1755384610479,1.4706,4431.9,4431.8,24.1156]
[1755384610873,1.4706,4431.9,4431.8,24.7319]
[1755384611277,1.4706,4431.9,4431.8,24.9742]
[1755384611579,1.4706,4431.9,4431.8,25.1342]
[1755384613771,1.4706,4431.9,4431.8,24.7319]
[1755384613974,1.4706,4431.9,4431.8,25.1342]
[1755384623881,0.1,4432.2,4431.8,24.9144]
[1755384624182,0.1,4432.2,4432.1,1.517]
[1755384624387,0.1,4432.2,4432.1,22.001]
[1755384624580,0.1,4432.2,4432.1,21.9785]
[1755384625477,1.1061,4433.3,4433.2,1.4945]
[1755384625675,1.4938,4433.3,4433.2,25.1863]
[1755384627482,0.2581,4433.6,4433.3,0.8891]
[1755384627687,1.4938,4433.6,4433.5,1.4945]
[1755384627877,1.4938,4433.6,4433.5,21.9785]
[1755384630184,1.4938,4433.6,4433.5,21.5537]
[1755384630488,1.4938,4433.6,4433.5,21.2925]
[1755384630688,0.5988,4433.6,4433.2,3.2078]
[1755384630883,0.895,4433.5,4433.2,3.2078]
[1755384631089,0.5988,4433.3,4433.2,3.2078]
[1755384631290,1.4938,4433.3,4433.2,23.6878]
[1755384631484,1.4938,4433.3,4433.2,25.0072]
[1755384634590,0.0225,4434.2,4433.2,25.0072]
[1755384634591,0.6369,4434.2,4433.2,23.6878]
[1755384634890,1.4938,4433.6,4433.5,1.2353]
[1755384635085,1.4938,4433.6,4433.5,21.9735]
[1755384635791,3.4659,4434.4,4433.6,0.6619]
[1755384636086,1.4938,4434.4,4434.3,1.4945]
[1755384636283,1.4938,4434.4,4434.3,21.9735]
[1755384647001,0.1748,4434.4,4434.3,21.9735]
[1755384647193,0.2581,4434.6,4434.4,0.8891]
[1755384647501,0.8495,4434.6,4434.5,21.9675]
[1755384647798,1.2372,4434.6,4434.5,21.9675]
[1755384648103,0.2581,4435.1,4434.6,0.8891]
[1755384648402,0.2581,4435.1,4435.0,1.4945]
[1755384648403,1.2372,4435.1,4435.0,1.4945]
[1755384648594,1.2372,4435.1,4435.0,21.9675]
[1755384648795,1.4938,4435.1,4435.0,21.7178]
[1755384649096,1.488,4434.9,4434.3,0.6561]
[1755384649395,1.488,4434.5,4434.4,21.5421]
[1755384649591,1.488,4434.5,4434.4,21.8011]
[1755384649797,1.488,4434.5,4434.4,21.5421]
[1755384650101,1.488,4434.5,4434.4,1.0701]
[1755384650398,1.488,4434.2,4434.1,1.2408]
[1755384650597,1.488,4434.2,4434.1,21.9718]
[1755384651104,0.6423,4434.8,4434.1,21.3157]
[1755384651303,0.334,4434.3,4434.2,1.4998]
[1755384651504,1.488,4434.3,4434.2,1.4998]
[1755384657504,1.488,4434.3,4434.2,0.414]
[1755384658607,1.488,4433.8,4433.7,3.2078]
[1755384658913,1.488,4433.8,4433.7,23.6778]
[1755384659411,1.488,4433.8,4433.7,24.5049]
[1755384659610,1.488,4433.8,4433.7,24.7479]
[1755384659810,1.488,4433.8,4433.7,24.9186]
[1755384660012,1.488,4433.8,4433.7,25.1776]
[1755384660509,1.488,4433.8,4433.7,21.9698]
[1755384660807,1.488,4433.8,4433.7,20.47]
[1755384661013,0.5808,4433.4,4433.3,0.8271]
[1755384661210,0.5808,4433.4,4433.3,21.5401]
[1755384661211,1.488,4433.4,4433.3,21.5401]
[1755384661411,1.488,4433.4,4433.3,21.7991]
[1755384661710,1.488,4433.4,4433.3,20.641]
[1755384662213,1.488,4433.4,4433.3,0.171]
[1755384662409,1.488,4432.8,4432.7,35.6898]
[1755384662715,1.488,4432.8,4432.7,21.2758]
[1755384663012,1.488,4432.8,4432.7,21.9698]
[1755384663603,1.488,4432.8,4432.7,20.641]
[1755384663806,1.488,4432.8,4432.7,0.171]
[1755384664017,0.334,4432.2,4432.1,4.1843]
[1755384664209,1.488,4432.2,4432.1,4.7076]
[1755384664708,1.488,4432.2,4432.1,25.1796]
[1755384667112,1.488,4432.2,4432.1,25.1816]
[1755384675028,1.488,4432.2,4432.1,23.6818]
[1755384675232,1.488,4432.2,4432.1,24.7519]
[1755384675435,1.488,4432.2,4432.1,25.0109]
[1755384675636,1.488,4432.2,4432.1,25.1816]
[1755384677630,0.529,4432.9,4432.2,0.5233]
[1755384677934,1.488,4432.9,4432.8,1.4998]
[1755384678139,1.488,4432.9,4432.8,21.9748]
[1755384679431,1.21312837,4435.1,4432.8,21.9748]
[1755384679432,4.0938,4434.0,4432.9,0.8497]
[1755384679630,0.8635,4433.8,4433.1,0.8497]
[1755384679824,1.2935,4433.7,4433.6,0.4129]
[1755384680026,1.4704,4433.7,4433.6,21.4903]
[1755384680431,1.4704,4433.7,4433.6,21.7376]
[1755384680624,0.849,4433.7,4433.6,21.9007]
[1755384680824,3.2078,4434.0,4433.7,0.4914]
[1755384681026,0.3514,4434.0,4433.9,0.576]
[1755384681232,1.4704,4434.0,4433.9,0.576]
[1755384681538,1.4704,4434.0,4433.9,1.4257]
[1755384682227,1.4704,4434.0,4433.9,4.6335]
[1755384682228,0.3514,4434.0,4433.9,4.6335]
[1755384682431,0.5935,4434.0,4433.9,4.6335]
[1755384682837,1.4704,4434.0,4433.9,4.6335]
[1755384684340,1.4704,4434.0,4433.9,25.1065]
[1755384684535,1.4704,4434.0,4433.9,24.0937]
[1755384684941,1.4704,4434.0,4433.9,20.472]
[1755384685534,1.4704,4434.0,4433.9,20.9929]
[1755384685739,1.4704,4434.0,4433.9,21.4873]
[1755384685933,1.4704,4434.0,4433.9,20.8849]
[1755384686140,1.4704,4434.0,4433.9,20.6346]
[1755384688539,1.4704,4434.0,4433.9,20.9929]
[1755384688735,0.4918,4434.5,4433.9,21.6504]
[1755384688940,0.9786,4434.5,4434.4,0.576]
[1755384689134,0.9786,4434.5,4434.4,21.046]
[1755384689535,3.2078,4434.6,4434.5,1.4257]
[1755384689536,0.3514,4434.6,4434.5,1.4257]
[1755384689742,1.2149,4434.6,4434.5,1.4257]
[1755384691235,0.8635,4435.3,4434.6,0.8497]
[1755384691437,0.8635,4435.3,4434.4,23.6778]
[1755384691438,1.4704,4435.2,4435.1,0.4129]
[1755384691641,1.4704,4435.2,4435.1,21.4843]
[1755384691841,1.4704,4435.2,4435.1,20.8819]
[1755384692045,1.4704,4435.2,4435.1,21.8947]
[1755384693338,1.4704,4435.2,4435.1,20.469]
[1755384693738,1.4704,4435.2,4435.1,21.4843]
[1755384695639,1.4704,4435.2,4435.1,21.8947]
[1755384696942,0.5935,4435.2,4435.1,21.8947]
[1755384697246,1.4704,4435.2,4435.1,21.8947]
[1755384697848,1.4704,4435.2,4435.1,20.8819]
[1755384698150,1.4704,4435.2,4435.1,21.4823]
[1755384698351,1.4704,4435.2,4435.1,21.7296]
[1755384698839,1.4704,4435.2,4435.1,1.2626]
[1755384699039,1.4704,4435.2,4435.1,21.7286]
[1755384700450,1.4704,4435.2,4435.1,21.8917]
[1755384701654,1.4704,4435.2,4435.1,1.4257]
[1755384701847,1.4704,4435.2,4435.1,21.8907]
[1755384703153,0.1769,4435.2,4435.1,21.8907]
[1755384703548,0.419,4435.2,4435.1,21.8907]
[1755384704149,1.2149,4435.2,4435.1,21.8907]
[1755384705152,0.5935,4435.2,4435.1,21.8907]
[1755384706163,1.2149,4435.2,4435.1,21.8907]
[1755384706356,1.4704,4435.2,4435.1,21.8907]
[1755384708254,3.2078,4435.9,4435.2,0.8497]
[1755384708559,1.4704,4435.4,4435.3,21.8887]
[1755384709255,3.2078,4435.9,4435.3,21.8887]
[1755384709462,1.5072,4435.8,4435.7,0.6121]
[1755384709660,1.5072,4435.8,4435.7,21.9597]
[1755384710360,1.5072,4435.8,4435.7,21.6966]
[1755384710553,1.5072,4435.8,4435.7,1.0605]
[1755384710758,1.5072,4435.8,4435.7,20.901]
[1755384711456,3.2078,4436.3,4435.7,21.5225]
[1755384711652,1.5072,4436.2,4436.1,1.4967]
[1755384711852,1.5072,4436.2,4436.1,21.6956]
[1755384712262,1.5072,4436.1,4436.0,20.462]
[1755384712962,1.5072,4436.1,4436.0,20.8404]
[1755384713153,1.5072,4436.1,4436.0,21.258]
[1755384713857,1.5072,4436.1,4436.0,21.0149]
[1755384714057,1.5072,4436.1,4436.0,20.6365]
[1755384714558,1.5072,4436.0,4435.9,20.462]
[1755384714861,1.5072,4436.0,4435.9,21.5225]
[1755384715163,1.5072,4436.0,4435.9,21.9587]
[1755384715666,1.5072,4436.0,4435.9,21.6956]
[1755384716764,1.5072,4436.0,4435.9,21.2794]
[1755384718359,1.5072,4436.0,4435.9,21.5225]
[1755384720262,1.5072,4436.0,4435.9,21.7856]
[1755384720463,1.5072,4436.0,4435.9,21.9587]
[1755384721468,3.4717,4436.8,4436.7,1.4967]
[1755384721667,4.715,4436.8,4436.7,21.9557]
[1755384722256,4.715,4436.8,4436.7,1.4967]
[1755384722558,1.5072,4436.8,4436.7,20.898]
[1755384722761,1.5072,4436.8,4436.7,21.9557]
[1755384723365,1.5072,4436.8,4436.7,21.6926]
[1755384723973,1.5072,4436.8,4436.7,21.9557]
[1755384727663,1.5072,4436.8,4436.7,21.6926]
[1755384729477,0.611,4436.8,4436.5,0.6215]
[1755384729679,1.5072,4436.3,4436.2,4.2683]
[1755384729978,1.5072,4436.3,4436.2,24.9884]
[1755384730178,1.5072,4436.3,4436.2,25.1615]
[1755384730380,0.611,4435.7,4435.6,0.9905]
[1755384730582,0.611,4435.7,4435.6,21.9527]
[1755384730583,1.5072,4435.7,4435.6,21.9527]
[1755384730976,0.6112,4435.7,4435.6,21.9527]
[1755384731981,1.2433,4435.5,4435.4,4.4414]
[1755384732181,1.5072,4435.5,4435.4,25.1775]
[1755384732482,1.1355,4435.5,4435.4,25.1775]
[1755384732980,1.5072,4435.5,4435.4,1.4967]
[1755384733280,1.5072,4435.5,4435.4,21.9687]
[1755384733576,0.6112,4435.5,4435.4,21.9687]
[1755384733781,0.4383,4435.5,4435.4,21.9687]
[1755384733976,0.8718,4435.5,4435.4,21.9687]
[1755384734176,1.2435,4435.5,4435.4,21.9687]
[1755384734382,1.5072,4435.5,4435.4,21.9687]
[1755384734578,0.3717,4435.9,4435.4,21.0841]
[1755384734778,4.0827,4436.3,4436.2,1.4967]
[1755384734978,4.715,4436.3,4436.2,1.4967]
[1755384736586,4.715,4436.3,4436.2,1.2336]
[1755384736788,4.715,4436.3,4436.1,20.473]
[1755384736983,0.611,4435.8,4435.3,3.2078]
[1755384737182,1.5072,4435.7,4435.6,0.5529]
[1755384737381,1.5072,4435.7,4435.6,0.796]
[1755384737581,1.5072,4435.7,4435.6,0.1745]
[1755384737782,1.5072,4435.7,4435.6,0.439]
[1755384737981,1.5072,4435.7,4435.6,1.0605]
[1755384738382,0.3473,4435.4,4434.7,3.2078]
[1755384738586,1.5072,4435.3,4435.2,0.439]
[1755384738784,1.5072,4435.3,4435.2,20.925]
[1755384738986,1.5072,4435.3,4435.2,21.5499]
[1755384739489,3.463,4435.8,4435.3,0.8834]
[1755384739691,4.6834,4435.8,4435.7,1.4719]
[1755384746993,3.2078,4435.8,4435.7,1.4719]
[1755384747298,4.6834,4436.6,4436.5,0.5885]
[1755384747493,5.24657147,4436.6,4436.5,1.2133]
[1755384747693,5.24657147,4436.6,4436.5,0.789]
[1755384747886,5.24657147,4436.6,4436.3,0.2586]
[1755384747887,4.6834,4436.6,4436.0,20.485]
[1755384748091,1.3003,4436.5,4436.4,0.4227]
[1755384748298,1.4756,4436.5,4436.4,1.4719]
[1755384751898,0.6011,4436.2,4436.1,1.4719]
[1755384752100,1.4756,4436.2,4436.1,1.4719]
[1755384752596,1.4756,4436.5,4436.4,0.5885]
[1755384752800,1.4756,4436.5,4436.4,1.4719]
[1755384759697,1.4756,4436.5,4436.1,0.6249]
[1755384759907,0.6011,4436.3,4436.2,0.794]
[1755384760200,0.6011,4435.5,4435.4,0.2536]
[1755384760406,0.9794,4435.4,4435.3,0.4227]
[1755384760602,0.3783,4436.0,4435.3,0.5885]
[1755384760907,0.6011,4435.6,4435.5,0.5885]
[1755384761102,1.4756,4435.6,4435.5,1.4719]
[1755384763006,1.4756,4435.6,4435.5,1.2134]
[1755384764109,0.6011,4435.3,4435.2,21.7721]
[1755384764311,1.4756,4435.3,4435.2,21.7721]
[1755384764512,1.4756,4435.3,4435.2,21.9379]
[1755384766111,1.4756,4435.3,4435.2,21.9459]
[1755384766709,1.4756,4435.3,4435.2,21.6854]
[1755384766915,0.5945,4435.3,4435.2,21.9439]
[1755384767215,0.3783,4435.8,4435.4,0.5885]
[1755384767507,0.5945,4435.7,4435.6,1.4719]
[1755384767908,1.4756,4435.7,4435.6,1.4719]
[1755384769812,0.5843,4435.4,4435.3,21.1181]
[1755384770212,1.4549,4435.4,4435.3,21.5367]
[1755384772219,1.4549,4435.4,4435.3,21.797]
[1755384772412,1.4549,4435.4,4435.3,21.9658]
[1755384775321,1.4549,4435.4,4435.3,1.2285]
[1755384775516,0.4204,4435.1,4435.0,1.0597]
[1755384775716,1.4549,4435.1,4435.0,0.4186]
[1755384776011,0.5843,4435.1,4434.9,23.6768]